[Event "Late-Titled-Tuesday-Blitz-January-30-2024"]
[Site "Chess.com"]
[Date "2024.01.30"]
[Round "4"]
[White "N_Mullodzhanov"]
[Black "neri_gaite"]
[Result "1-0"]
[WhiteElo "2450"]
[BlackElo "2028"]
[TimeControl "180+1"]
[EndTime "14:39:20 PST"]
[Termination "N_Mullodzhanov won on time"]

1. e4 {[%clk 0:03:00.9]} 1... e6 {[%clk 0:02:59.6]} 2. d4 {[%clk 0:02:58.9]}
2... d5 {[%clk 0:02:59.9]} 3. Nd2 {[%clk 0:02:57]} 3... c5 {[%clk 0:02:58.2]} 4.
Ngf3 {[%clk 0:02:54.9]} 4... cxd4 {[%clk 0:02:57.5]} 5. Nxd4 {[%clk 0:02:54.9]}
5... Nc6 {[%clk 0:02:57.7]} 6. Nxc6 {[%clk 0:02:52.9]} 6... bxc6 {[%clk
0:02:58.6]} 7. Bd3 {[%clk 0:02:52]} 7... Nf6 {[%clk 0:02:54.5]} 8. O-O {[%clk
0:02:51.8]} 8... Be7 {[%clk 0:02:48.9]} 9. c4 {[%clk 0:02:51.1]} 9... a5 {[%clk
0:02:47]} 10. Re1 {[%clk 0:02:43.2]} 10... O-O {[%clk 0:02:46.5]} 11. b3 {[%clk
0:02:33.7]} 11... a4 {[%clk 0:02:21.5]} 12. Bb2 {[%clk 0:02:29.3]} 12... axb3
{[%clk 0:02:19.2]} 13. axb3 {[%clk 0:02:28.2]} 13... Bb7 {[%clk 0:02:01.2]} 14.
e5 {[%clk 0:01:57.7]} 14... Nd7 {[%clk 0:01:56.4]} 15. Qc2 {[%clk 0:01:50.4]}
15... h6 {[%clk 0:01:40.1]} 16. Nf3 {[%clk 0:01:49]} 16... Qb6 {[%clk
0:01:32.4]} 17. g3 {[%clk 0:01:29.3]} 17... c5 {[%clk 0:01:03.4]} 18. Kg2 {[%clk
0:01:20.2]} 18... d4 {[%clk 0:00:52.6]} 19. Rxa8 {[%clk 0:00:42]} 19... Rxa8
{[%clk 0:00:48.4]} 20. Bh7+ {[%clk 0:00:41.9]} 20... Kf8 {[%clk 0:00:28.4]} 21.
Be4 {[%clk 0:00:41.9]} 21... Bxe4 {[%clk 0:00:17.8]} 22. Qxe4 {[%clk 0:00:42.8]}
22... Rb8 {[%clk 0:00:15.9]} 23. Qh7 {[%clk 0:00:41.9]} 23... Ke8 {[%clk
0:00:10.5]} 24. Nd2 {[%clk 0:00:40.1]} 24... Qb4 {[%clk 0:00:06.2]} 25. Re2
{[%clk 0:00:30.7]} 25... Bf8 {[%clk 0:00:06.9]} 26. Qe4 {[%clk 0:00:20.1]} 26...
Qb7 {[%clk 0:00:07]} 27. f4 {[%clk 0:00:18.7]} 27... Qxe4+ {[%clk 0:00:06.9]}
28. Rxe4 {[%clk 0:00:19.6]} 28... Ra8 {[%clk 0:00:05.3]} 29. Nf3 {[%clk
0:00:13.1]} 29... Ra2 {[%clk 0:00:05.4]} 30. Re2 {[%clk 0:00:13.2]} 30... Nb6
{[%clk 0:00:04.9]} 31. Kf2 {[%clk 0:00:10.9]} 31... Na8 {[%clk 0:00:05]} 32. Rd2
{[%clk 0:00:07.6]} 32... Nc7 {[%clk 0:00:05]} 33. Ke2 {[%clk 0:00:08.2]} 33...
Na6 {[%clk 0:00:05.1]} 34. g4 {[%clk 0:00:06.8]} 34... Nb4 {[%clk 0:00:05.1]}
35. f5 {[%clk 0:00:07.2]} 35... Kd7 {[%clk 0:00:04.5]} 36. h4 {[%clk 0:00:05.6]}
36... Be7 {[%clk 0:00:04.6]} 37. Ke1 {[%clk 0:00:02.6]} 37... Nc6 {[%clk
0:00:05.1]} 38. Ke2 {[%clk 0:00:03.1]} 38... Ra8 {[%clk 0:00:04.7]} 39. Bc1
{[%clk 0:00:03.3]} 39... Rb8 {[%clk 0:00:05.6]} 40. Rb2 {[%clk 0:00:03.5]} 40...
Na5 {[%clk 0:00:05.4]} 41. Bf4 {[%clk 0:00:03.9]} 41... Rxb3 {[%clk 0:00:03.4]}
42. Rc2 {[%clk 0:00:03.3]} 42... Rb4 {[%clk 0:00:03.3]} 43. Nd2 {[%clk
0:00:02.9]} 43... Bxh4 {[%clk 0:00:01.5]} 44. f6 {[%clk 0:00:02.4]} 44... gxf6
{[%clk 0:00:01.3]} 45. Nf3 {[%clk 0:00:02.9]} 45... fxe5 {[%clk 0:00:01.2]} 46.
Nxe5+ {[%clk 0:00:02]} 1-0

[Event "Late-Titled-Tuesday-Blitz-January-30-2024"]
[Site "Chess.com"]
[Date "2024.01.30"]
[Round "4"]
[White "ChessSwole"]
[Black "MikaelyanArman"]
[Result "0-1"]
[WhiteElo "2579"]
[BlackElo "2855"]
[TimeControl "180+1"]
[EndTime "14:39:23 PST"]
[Termination "MikaelyanArman won by resignation"]

1. d4 {[%clk 0:03:00.9]} 1... Nf6 {[%clk 0:02:57.9]} 2. Nc3 {[%clk 0:03:00.6]}
2... d5 {[%clk 0:02:57.6]} 3. Bf4 {[%clk 0:03:01.2]} 3... a6 {[%clk 0:02:58.2]}
4. e3 {[%clk 0:03:01.2]} 4... e6 {[%clk 0:02:56]} 5. g4 {[%clk 0:03:01.2]} 5...
Bd6 {[%clk 0:02:53.3]} 6. Nge2 {[%clk 0:02:56.3]} 6... Nxg4 {[%clk 0:02:31.9]}
7. Bxd6 {[%clk 0:02:18.6]} 7... Qxd6 {[%clk 0:02:32.8]} 8. Rg1 {[%clk 0:02:03]}
8... Nxh2 {[%clk 0:02:32.3]} 9. Nf4 {[%clk 0:02:01.5]} 9... Nxf1 {[%clk
0:02:30.1]} 10. Kxf1 {[%clk 0:02:00.2]} 10... g6 {[%clk 0:02:22.7]} 11. Qf3
{[%clk 0:01:55.1]} 11... Nd7 {[%clk 0:02:16.3]} 12. e4 {[%clk 0:01:52.5]} 12...
c6 {[%clk 0:01:56]} 13. Re1 {[%clk 0:01:47.5]} 13... Kd8 {[%clk 0:01:50.2]} 14.
Nd3 {[%clk 0:01:34.8]} 14... Rf8 {[%clk 0:01:35.8]} 15. e5 {[%clk 0:01:10.9]}
15... Qe7 {[%clk 0:01:33.7]} 16. Na4 {[%clk 0:01:06.7]} 16... b6 {[%clk
0:01:32.7]} 17. Nf4 {[%clk 0:00:59.5]} 17... Qb4 {[%clk 0:01:29]} 18. b3 {[%clk
0:00:54.7]} 18... Bb7 {[%clk 0:01:08.2]} 19. c3 {[%clk 0:00:53.7]} 19... Qe7
{[%clk 0:01:07.9]} 20. Rh1 {[%clk 0:00:38.4]} 20... h5 {[%clk 0:01:06]} 21. Rc1
{[%clk 0:00:37]} 21... Kc7 {[%clk 0:01:01.3]} 22. c4 {[%clk 0:00:19.2]} 22...
Kb8 {[%clk 0:01:01.3]} 23. Nc3 {[%clk 0:00:17.5]} 23... Ka7 {[%clk 0:01:01.2]}
24. Qe3 {[%clk 0:00:17.2]} 24... Rac8 {[%clk 0:00:56.9]} 25. a4 {[%clk
0:00:17.4]} 25... dxc4 {[%clk 0:00:46.2]} 26. bxc4 {[%clk 0:00:17.1]} 26... c5
{[%clk 0:00:46.8]} 27. d5 {[%clk 0:00:14.3]} 27... exd5 {[%clk 0:00:47.7]} 28.
Ncxd5 {[%clk 0:00:14.3]} 28... Qxe5 {[%clk 0:00:46.3]} 29. Qb3 {[%clk
0:00:12.8]} 29... a5 {[%clk 0:00:40]} 30. Rh3 {[%clk 0:00:12.4]} 30... Rfe8
{[%clk 0:00:35]} 31. Re3 {[%clk 0:00:12.6]} 31... Qd6 {[%clk 0:00:34.5]} 32.
Rce1 {[%clk 0:00:12.7]} 32... Rxe3 {[%clk 0:00:31.8]} 33. Rxe3 {[%clk
0:00:13.6]} 33... g5 {[%clk 0:00:29.9]} 34. Nxh5 {[%clk 0:00:11.2]} 34... Bxd5
{[%clk 0:00:20.5]} 35. cxd5 {[%clk 0:00:12.1]} 35... c4 {[%clk 0:00:21.1]} 36.
Qc3 {[%clk 0:00:12.4]} 36... Qb4 {[%clk 0:00:18.6]} 37. Ng3 {[%clk 0:00:12.1]}
37... Qxc3 {[%clk 0:00:18.3]} 38. Rxc3 {[%clk 0:00:13]} 38... Nf6 {[%clk
0:00:15.7]} 39. d6 {[%clk 0:00:12.2]} 39... Kb7 {[%clk 0:00:16]} 40. Rf3 {[%clk
0:00:10.8]} 40... Nd7 {[%clk 0:00:10]} 41. Rxf7 {[%clk 0:00:11.7]} 41... Kc6
{[%clk 0:00:10.6]} 42. Ne4 {[%clk 0:00:11.6]} 42... Re8 {[%clk 0:00:09.1]} 43.
f3 {[%clk 0:00:11.1]} 43... g4 {[%clk 0:00:08]} 44. Rxd7 {[%clk 0:00:09.6]}
44... Kxd7 {[%clk 0:00:03.8]} 45. Nf6+ {[%clk 0:00:09.9]} 45... Kd8 {[%clk
0:00:03.7]} 46. Nxe8 {[%clk 0:00:10.8]} 46... c3 {[%clk 0:00:04]} 47. Ke2 {[%clk
0:00:09.8]} 47... gxf3+ {[%clk 0:00:04.3]} 48. Kd3 {[%clk 0:00:09.4]} 48... f2
{[%clk 0:00:04.6]} 49. Ke2 {[%clk 0:00:09]} 49... c2 {[%clk 0:00:05.1]} 50. Nc7
{[%clk 0:00:07.6]} 50... c1=Q {[%clk 0:00:05.3]} 51. Ne6+ {[%clk 0:00:08.4]}
51... Kd7 {[%clk 0:00:05.2]} 52. Nf8+ {[%clk 0:00:07.7]} 52... Kxd6 {[%clk
0:00:05.1]} 0-1

[Event "Late-Titled-Tuesday-Blitz-January-30-2024"]
[Site "Chess.com"]
[Date "2024.01.30"]
[Round "4"]
[White "Gentlejimmy7"]
[Black "Dedic8"]
[Result "0-1"]
[WhiteElo "2538"]
[BlackElo "2810"]
[TimeControl "180+1"]
[EndTime "14:39:24 PST"]
[Termination "Dedic8 won on time"]

1. c4 {[%clk 0:02:50.7]} 1... e6 {[%clk 0:02:59.7]} 2. g3 {[%clk 0:02:47.2]}
2... d5 {[%clk 0:03:00.6]} 3. Bg2 {[%clk 0:02:43.6]} 3... dxc4 {[%clk 0:03:01]}
4. Nf3 {[%clk 0:02:36.5]} 4... Nf6 {[%clk 0:03:00.9]} 5. Ne5 {[%clk 0:02:33.2]}
5... Qd4 {[%clk 0:02:45.1]} 6. Nf3 {[%clk 0:02:30.9]} 6... Qb6 {[%clk
0:02:38.3]} 7. Qa4+ {[%clk 0:02:08.5]} 7... Qc6 {[%clk 0:02:29.4]} 8. Qc2 {[%clk
0:02:09]} 8... Na6 {[%clk 0:02:27.5]} 9. O-O {[%clk 0:01:52.2]} 9... Nb4 {[%clk
0:02:24.4]} 10. Qd1 {[%clk 0:01:52.5]} 10... Qa6 {[%clk 0:02:24.6]} 11. Ne5
{[%clk 0:01:43.9]} 11... Bd6 {[%clk 0:02:23.2]} 12. f4 {[%clk 0:01:19]} 12...
Bxe5 {[%clk 0:02:21.1]} 13. fxe5 {[%clk 0:01:18.8]} 13... Ng4 {[%clk 0:02:21.5]}
14. Kh1 {[%clk 0:00:46.4]} 14... O-O {[%clk 0:02:17.1]} 15. Nc3 {[%clk
0:00:44.4]} 15... Nxe5 {[%clk 0:02:15.4]} 16. b3 {[%clk 0:00:31.7]} 16... Bd7
{[%clk 0:02:09.6]} 17. Bb2 {[%clk 0:00:32]} 17... Bc6 {[%clk 0:02:08.6]} 18. Ne4
{[%clk 0:00:30.8]} 18... f5 {[%clk 0:01:34.7]} 19. Bxe5 {[%clk 0:00:17.3]} 19...
Bxe4 {[%clk 0:01:35]} 20. Bxe4 {[%clk 0:00:16.9]} 20... fxe4 {[%clk 0:01:35.9]}
21. Kg2 {[%clk 0:00:04.7]} 21... Qc6 {[%clk 0:01:23.9]} 22. Rf4 {[%clk
0:00:03.4]} 22... Qd5 {[%clk 0:01:11.8]} 23. Rxf8+ {[%clk 0:00:03.2]} 23... Rxf8
{[%clk 0:01:11.4]} 24. Bf4 {[%clk 0:00:04.1]} 24... e3+ {[%clk 0:01:09.7]} 25.
Kg1 {[%clk 0:00:04.7]} 25... exd2 {[%clk 0:00:58.8]} 26. Qxd2 {[%clk 0:00:05.6]}
26... Qxd2 {[%clk 0:00:43.6]} 27. Bxd2 {[%clk 0:00:06.5]} 27... Nc2 {[%clk
0:00:44.3]} 28. Rc1 {[%clk 0:00:06.5]} 28... Nd4 {[%clk 0:00:45]} 29. Rxc4
{[%clk 0:00:06.7]} 29... Nxe2+ {[%clk 0:00:36.9]} 30. Kg2 {[%clk 0:00:07.2]}
30... Rd8 {[%clk 0:00:37.6]} 31. Be3 {[%clk 0:00:07.5]} 31... c5 {[%clk
0:00:21.7]} 32. Rxc5 {[%clk 0:00:06.4]} 32... Nd4 {[%clk 0:00:21.1]} 33. Rc7
{[%clk 0:00:06.3]} 33... b5 {[%clk 0:00:16.9]} 34. Rxa7 {[%clk 0:00:05.5]} 34...
Nf5 {[%clk 0:00:17.5]} 35. Bf2 {[%clk 0:00:05.8]} 35... Rd2 {[%clk 0:00:17.7]}
36. a4 {[%clk 0:00:05.1]} 36... b4 {[%clk 0:00:13.3]} 37. Kf3 {[%clk 0:00:05.4]}
37... Rd3+ {[%clk 0:00:12.1]} 38. Ke2 {[%clk 0:00:04]} 38... Rxb3 {[%clk
0:00:11.6]} 39. Rb7 {[%clk 0:00:04.6]} 39... Rb2+ {[%clk 0:00:12]} 40. Kf3
{[%clk 0:00:04.6]} 40... b3 {[%clk 0:00:12.1]} 41. a5 {[%clk 0:00:05]} 41... Ra2
{[%clk 0:00:08.2]} 42. Rxb3 {[%clk 0:00:04.3]} 42... Rxa5 {[%clk 0:00:08.8]} 43.
g4 {[%clk 0:00:04.8]} 43... Ne7 {[%clk 0:00:06.2]} 44. Rb7 {[%clk 0:00:04.2]}
44... Nd5 {[%clk 0:00:06]} 45. Bd4 {[%clk 0:00:04.7]} 45... Nf6 {[%clk
0:00:05.9]} 46. g5 {[%clk 0:00:03.7]} 46... Rxg5 {[%clk 0:00:06]} 47. h4 {[%clk
0:00:03.5]} 47... Rf5+ {[%clk 0:00:06.3]} 48. Ke3 {[%clk 0:00:03.2]} 48... h6
{[%clk 0:00:05.3]} 49. Bc3 {[%clk 0:00:03.2]} 49... Kh7 {[%clk 0:00:05.6]} 50.
Rb6 {[%clk 0:00:03.2]} 50... Nd5+ {[%clk 0:00:05.3]} 0-1

[Event "Late-Titled-Tuesday-Blitz-January-30-2024"]
[Site "Chess.com"]
[Date "2024.01.30"]
[Round "4"]
[White "Iball95"]
[Black "arenal72"]
[Result "1-0"]
[WhiteElo "2788"]
[BlackElo "2559"]
[TimeControl "180+1"]
[EndTime "14:39:32 PST"]
[Termination "Iball95 won by checkmate"]

1. e4 {[%clk 0:02:59.9]} 1... Nc6 {[%clk 0:02:58.8]} 2. Nc3 {[%clk 0:02:59.7]}
2... e6 {[%clk 0:02:52.2]} 3. d4 {[%clk 0:02:59.2]} 3... d5 {[%clk 0:02:51.7]}
4. Nf3 {[%clk 0:02:59.4]} 4... Nf6 {[%clk 0:02:49.5]} 5. Bd3 {[%clk 0:02:56.3]}
5... dxe4 {[%clk 0:02:44]} 6. Nxe4 {[%clk 0:02:56]} 6... Be7 {[%clk 0:02:43.3]}
7. c3 {[%clk 0:02:45]} 7... O-O {[%clk 0:02:37.7]} 8. Qc2 {[%clk 0:02:43.2]}
8... h6 {[%clk 0:02:36.3]} 9. Be3 {[%clk 0:02:36.9]} 9... Qd5 {[%clk 0:02:26.7]}
10. Nxf6+ {[%clk 0:02:32.6]} 10... Bxf6 {[%clk 0:02:25.6]} 11. Be4 {[%clk
0:02:32.3]} 11... Qd6 {[%clk 0:02:19.5]} 12. O-O-O {[%clk 0:02:31.5]} 12... Bd7
{[%clk 0:02:12.7]} 13. g4 {[%clk 0:02:31.3]} 13... Qe7 {[%clk 0:01:59.2]} 14. h4
{[%clk 0:02:30.7]} 14... g6 {[%clk 0:01:05]} 15. Bxh6 {[%clk 0:02:29.3]} 15...
Rfd8 {[%clk 0:01:04.5]} 16. h5 {[%clk 0:02:26.4]} 16... g5 {[%clk 0:01:03.7]}
17. Qd2 {[%clk 0:02:19.7]} 17... Na5 {[%clk 0:01:00.8]} 18. Bxg5 {[%clk
0:02:09.1]} 18... Ba4 {[%clk 0:00:56.1]} 19. Rdg1 {[%clk 0:01:50.2]} 19... c5
{[%clk 0:00:48]} 20. Bxf6 {[%clk 0:01:03.3]} 20... Qxf6 {[%clk 0:00:46.9]} 21.
g5 {[%clk 0:01:03.7]} 21... Qe7 {[%clk 0:00:43.6]} 22. g6 {[%clk 0:01:01.1]}
22... f5 {[%clk 0:00:43.5]} 23. h6 {[%clk 0:00:24.2]} 23... fxe4 {[%clk
0:00:36.8]} 24. g7 {[%clk 0:00:24.5]} 24... exf3 {[%clk 0:00:23.2]} 25. h7+
{[%clk 0:00:24.4]} 25... Kf7 {[%clk 0:00:23.6]} 26. h8=Q {[%clk 0:00:20.1]}
26... Rxh8 {[%clk 0:00:22.8]} 27. gxh8=Q {[%clk 0:00:15.3]} 27... Rxh8 {[%clk
0:00:21.8]} 28. Rxh8 {[%clk 0:00:16.2]} 28... Qf6 {[%clk 0:00:19.9]} 29. Rh7+
{[%clk 0:00:11.4]} 29... Kf8 {[%clk 0:00:20.1]} 30. Qh6+ {[%clk 0:00:07.5]}
30... Qxh6+ {[%clk 0:00:20.6]} 31. Rxh6 {[%clk 0:00:08.4]} 31... cxd4 {[%clk
0:00:21.3]} 32. cxd4 {[%clk 0:00:09.3]} 32... Nc6 {[%clk 0:00:21.4]} 33. Rg4
{[%clk 0:00:08.2]} 33... Bb5 {[%clk 0:00:17.6]} 34. Rxe6 {[%clk 0:00:07.5]}
34... Be2 {[%clk 0:00:17.2]} 35. Kd2 {[%clk 0:00:07.8]} 35... Nb4 {[%clk
0:00:14.2]} 36. Rf4+ {[%clk 0:00:07.5]} 36... Kg7 {[%clk 0:00:13.9]} 37. a3
{[%clk 0:00:07.7]} 37... Nd5 {[%clk 0:00:13.8]} 38. Rg4+ {[%clk 0:00:08]} 38...
Kf7 {[%clk 0:00:13.8]} 39. Re5 {[%clk 0:00:08.3]} 39... Nf6 {[%clk 0:00:13.5]}
40. Rf4 {[%clk 0:00:08.7]} 40... Kg7 {[%clk 0:00:14.1]} 41. Rg5+ {[%clk
0:00:08.8]} 41... Kh6 {[%clk 0:00:12.8]} 42. Rg1 {[%clk 0:00:08.9]} 42... Nh5
{[%clk 0:00:12]} 43. Rh4 {[%clk 0:00:09.5]} 43... b6 {[%clk 0:00:11]} 44. Rgh1
{[%clk 0:00:09.8]} 44... Kg6 {[%clk 0:00:11.9]} 45. Rxh5 {[%clk 0:00:10.6]}
45... Kf6 {[%clk 0:00:12.6]} 46. Re5 {[%clk 0:00:11.1]} 46... a6 {[%clk
0:00:12.2]} 47. Rh4 {[%clk 0:00:11.2]} 47... Kf7 {[%clk 0:00:12.9]} 48. Rf4+
{[%clk 0:00:11.9]} 48... Kg6 {[%clk 0:00:13.1]} 49. Ke3 {[%clk 0:00:11.9]} 49...
b5 {[%clk 0:00:12.8]} 50. Re8 {[%clk 0:00:12.1]} 50... Kg7 {[%clk 0:00:12.4]}
51. Ra8 {[%clk 0:00:11.7]} 51... a5 {[%clk 0:00:12.3]} 52. Rxa5 {[%clk
0:00:12.2]} 52... b4 {[%clk 0:00:13.2]} 53. axb4 {[%clk 0:00:12.9]} 53... Kg6
{[%clk 0:00:14]} 54. b5 {[%clk 0:00:13.3]} 54... Kg7 {[%clk 0:00:14.7]} 55. b6
{[%clk 0:00:13.5]} 55... Kg6 {[%clk 0:00:15.6]} 56. b7 {[%clk 0:00:13.9]} 56...
Kg7 {[%clk 0:00:16.5]} 57. b8=Q {[%clk 0:00:13.5]} 57... Kg6 {[%clk 0:00:17.4]}
58. Qe5 {[%clk 0:00:13.5]} 58... Kh7 {[%clk 0:00:17.3]} 59. Qh5+ {[%clk
0:00:12.8]} 59... Kg7 {[%clk 0:00:17.5]} 60. Rg5# {[%clk 0:00:13.7]} 1-0

[Event "Late-Titled-Tuesday-Blitz-January-30-2024"]
[Site "Chess.com"]
[Date "2024.01.30"]
[Round "4"]
[White "EsmeraldasAnderson03"]
[Black "yaguigor"]
[Result "1/2-1/2"]
[WhiteElo "2416"]
[BlackElo "2619"]
[TimeControl "180+1"]
[EndTime "14:39:32 PST"]
[Termination "Game drawn by repetition"]

1. d4 {[%clk 0:03:00.9]} 1... d5 {[%clk 0:02:55]} 2. c4 {[%clk 0:03:01.4]} 2...
c6 {[%clk 0:02:54.8]} 3. cxd5 {[%clk 0:03:01.9]} 3... cxd5 {[%clk 0:02:54.2]} 4.
Nc3 {[%clk 0:03:02.8]} 4... Nf6 {[%clk 0:02:53.5]} 5. Nf3 {[%clk 0:03:03.3]}
5... Nc6 {[%clk 0:02:53.7]} 6. Bf4 {[%clk 0:03:03.6]} 6... Bf5 {[%clk
0:02:53.8]} 7. e3 {[%clk 0:03:04]} 7... e6 {[%clk 0:02:53.4]} 8. Bd3 {[%clk
0:03:04.5]} 8... Bxd3 {[%clk 0:02:52.8]} 9. Qxd3 {[%clk 0:03:05.4]} 9... Bd6
{[%clk 0:02:41.5]} 10. Bxd6 {[%clk 0:03:04.9]} 10... Qd7 {[%clk 0:02:41.3]} 11.
O-O {[%clk 0:03:05.8]} 11... Qxd6 {[%clk 0:02:40.5]} 12. Nb5 {[%clk 0:03:06.3]}
12... Qd7 {[%clk 0:02:34.9]} 13. a3 {[%clk 0:03:05.7]} 13... O-O {[%clk
0:02:32.9]} 14. b4 {[%clk 0:03:05.2]} 14... Ne4 {[%clk 0:02:26.8]} 15. Nd2
{[%clk 0:03:04.4]} 15... Nxd2 {[%clk 0:02:26.1]} 16. Qxd2 {[%clk 0:03:02.9]}
16... a5 {[%clk 0:02:22.3]} 17. bxa5 {[%clk 0:02:50.7]} 17... Nxa5 {[%clk
0:02:21.2]} 18. Qb4 {[%clk 0:02:45.8]} 18... Rfc8 {[%clk 0:02:19.2]} 19. Rfc1
{[%clk 0:02:43.4]} 19... Nc4 {[%clk 0:02:04]} 20. h3 {[%clk 0:02:40.4]} 20...
Rc6 {[%clk 0:02:00.4]} 21. Nc3 {[%clk 0:02:27.2]} 21... Rb6 {[%clk 0:01:53.9]}
22. Qc5 {[%clk 0:02:13.9]} 22... Ra5 {[%clk 0:01:15.1]} 23. Na4 {[%clk
0:01:58.7]} 23... Rxa4 {[%clk 0:00:49.9]} 24. Rxc4 {[%clk 0:01:57.4]} 24... Rc6
{[%clk 0:00:50.2]} 25. Qxc6 {[%clk 0:01:54.3]} 25... Qxc6 {[%clk 0:00:43.1]} 26.
Rxc6 {[%clk 0:01:49.7]} 26... bxc6 {[%clk 0:00:44]} 27. Kf1 {[%clk 0:01:47.1]}
27... Kf8 {[%clk 0:00:41.8]} 28. Ke2 {[%clk 0:01:47.6]} 28... Ke7 {[%clk
0:00:42]} 29. Kd3 {[%clk 0:01:48.2]} 29... Kd6 {[%clk 0:00:42.3]} 30. Kc3 {[%clk
0:01:48.6]} 30... c5 {[%clk 0:00:42.6]} 31. Kb3 {[%clk 0:01:47.4]} 31... Ra7
{[%clk 0:00:41.1]} 32. dxc5+ {[%clk 0:01:45.7]} 32... Kxc5 {[%clk 0:00:40.5]}
33. a4 {[%clk 0:01:46.1]} 33... d4 {[%clk 0:00:36.3]} 34. exd4+ {[%clk
0:01:40.4]} 34... Kxd4 {[%clk 0:00:36]} 35. Kb4 {[%clk 0:01:40.7]} 35... Rb7+
{[%clk 0:00:34.8]} 36. Ka5 {[%clk 0:01:40.6]} 36... Rb2 {[%clk 0:00:32.2]} 37.
g4 {[%clk 0:01:29.6]} 37... Rxf2 {[%clk 0:00:29.4]} 38. Kb6 {[%clk 0:01:29.7]}
38... Rb2+ {[%clk 0:00:28.7]} 39. Kc7 {[%clk 0:01:30]} 39... Rc2+ {[%clk
0:00:21.7]} 40. Kd7 {[%clk 0:01:29.1]} 40... Rb2 {[%clk 0:00:20.9]} 41. Kc7
{[%clk 0:01:27.3]} 41... Rc2+ {[%clk 0:00:20.9]} 42. Kd7 {[%clk 0:01:26.7]}
42... Rb2 {[%clk 0:00:19.4]} 43. a5 {[%clk 0:01:19.3]} 43... Rb7+ {[%clk
0:00:18.3]} 44. Kc6 {[%clk 0:01:19.8]} 44... Ra7 {[%clk 0:00:17.1]} 45. Kb6
{[%clk 0:01:20.1]} 45... Ra8 {[%clk 0:00:16.7]} 46. Kb7 {[%clk 0:01:18.6]} 46...
Rf8 {[%clk 0:00:15.3]} 47. Rc1 {[%clk 0:01:18.6]} 47... f5 {[%clk 0:00:14.1]}
48. gxf5 {[%clk 0:01:17.4]} 48... exf5 {[%clk 0:00:13.7]} 49. a6 {[%clk
0:01:16.8]} 49... f4 {[%clk 0:00:12.2]} 50. a7 {[%clk 0:01:16.6]} 50... f3
{[%clk 0:00:11.3]} 51. Rc8 {[%clk 0:00:53.1]} 51... Rf7+ {[%clk 0:00:10.5]} 52.
Rc7 {[%clk 0:00:51.8]} 52... Rxc7+ {[%clk 0:00:10.4]} 53. Kxc7 {[%clk
0:00:52.7]} 53... f2 {[%clk 0:00:10.7]} 54. a8=Q {[%clk 0:00:53.1]} 54... f1=Q
{[%clk 0:00:11.6]} 55. Qa4+ {[%clk 0:00:52.2]} 55... Ke5 {[%clk 0:00:11]} 56.
Qe8+ {[%clk 0:00:51.2]} 56... Kd4 {[%clk 0:00:09.9]} 57. Qd7+ {[%clk 0:00:50.2]}
57... Kc3 {[%clk 0:00:09.2]} 58. Qxg7+ {[%clk 0:00:47.9]} 58... Kb4 {[%clk
0:00:07.9]} 59. Qxh7 {[%clk 0:00:45.9]} 59... Qc4+ {[%clk 0:00:07.9]} 60. Kd8
{[%clk 0:00:46.1]} 60... Qd5+ {[%clk 0:00:06.9]} 61. Ke8 {[%clk 0:00:46.2]}
61... Qa8+ {[%clk 0:00:05.6]} 62. Kf7 {[%clk 0:00:44.8]} 62... Qb7+ {[%clk
0:00:05.9]} 63. Kg8 {[%clk 0:00:45.1]} 63... Qc8+ {[%clk 0:00:05.9]} 64. Kg7
{[%clk 0:00:45.8]} 64... Qd7+ {[%clk 0:00:05.8]} 65. Kg6 {[%clk 0:00:44.2]}
65... Qd3+ {[%clk 0:00:05.7]} 66. Kg7 {[%clk 0:00:42.3]} 66... Qd7+ {[%clk
0:00:05.8]} 67. Kh8 {[%clk 0:00:42.6]} 67... Qc8+ {[%clk 0:00:03.8]} 68. Kg7
{[%clk 0:00:39]} 68... Qd7+ {[%clk 0:00:04.4]} 1/2-1/2